bitfinex-derivatives/quotes_SOLF0:USTF0_20250924
["timestamp","ask_amount","ask_price","bid_price","bid_amount"]
[1758751412587,11.33563651,211.95,211.86,461.12]
[1758751412782,3.35563651,211.94,211.86,461.12]
[1758751413181,3.35563651,211.93,211.86,461.12]
[1758751413689,3.35563651,211.93,211.89,4.2451]
[1758751413888,7.98,211.98,211.87,1.02]
[1758751414076,3.35669533,211.97,211.87,1.02]
[1758751414282,3.35669533,211.96,211.87,1.02]
[1758751414477,3.35669533,211.95,211.87,1.02]
[1758751414687,7.98,211.98,211.88,66.0402]
[1758751414880,3.35735577,211.97,211.88,66.0402]
[1758751415084,3.35735577,211.96,211.88,66.0402]
[1758751415288,3.35735577,211.95,211.88,66.0402]
[1758751415489,7.98,211.98,211.88,66.0402]
[1758751415689,3.35652438,211.97,211.92,4.2445]
[1758751415891,3.35652438,211.96,211.87,1.02]
[1758751416188,3.35652438,211.95,211.87,118.76]
[1758751416488,3.35652438,211.94,211.87,118.76]
[1758751416684,3.35652438,211.93,211.89,4.245]
[1758751416884,7.98,211.92,211.89,4.245]
[1758751418691,12.2242,211.95,211.87,121.9855]
[1758751418892,7.98,211.93,211.87,4.2455]
[1758751419188,7.98,211.91,211.87,4.2455]
[1758751419385,7.98,211.91,211.88,4.2453]
[1758751419788,7.98,211.97,211.87,1.02]
[1758751420087,3.35681482,211.96,211.87,1.02]
[1758751420288,3.35681482,211.95,211.87,1.02]
[1758751420591,3.35681482,211.94,211.87,1.02]
[1758751420889,3.35681482,211.93,211.87,1.02]
[1758751421087,7.98,211.97,211.87,1.02]
[1758751421292,3.35654142,211.96,211.9,4.245]
[1758751421590,4.2435,211.98,211.87,1.02]
[1758751421591,3.35654142,211.95,211.87,1.02]
[1758751421789,3.35654142,211.94,211.87,1.02]
[1758751422003,5.27616311,212.04,211.91,66.031]
[1758751422184,11.33709129,212.03,211.92,118.8]
[1758751422383,3.35709129,212.02,211.92,118.8]
[1758751422584,3.35709129,212.01,211.92,118.8]
[1758751422790,3.35709129,212.0,211.92,118.8]
[1758751422995,3.35709129,211.99,211.92,118.8]
[1758751423295,3.35709129,211.98,211.96,4.2437]
[1758751423590,7.98,212.03,211.96,1.02]
[1758751423888,3.35736489,212.02,211.96,1.02]
[1758751424093,3.35736489,212.01,211.96,1.02]
[1758751424294,3.35736489,212.0,211.96,1.02]
[1758751424485,5.27616311,212.08,211.93,66.0236]
[1758751424486,11.33736489,211.99,211.93,66.0236]
[1758751424793,3.35736489,211.98,211.94,117.8]
[1758751424982,11.33736489,211.97,211.94,117.8]
[1758751425187,7.98,211.97,211.94,117.8]
[1758751425591,4.2427,212.02,211.94,117.8]
[1758751425894,3.35786156,212.01,211.94,117.8]
[1758751426082,3.35786156,212.0,211.94,117.8]
[1758751426287,11.33786156,211.99,211.94,117.8]
[1758751426493,3.35786156,211.98,211.94,117.8]
[1758751426892,3.35786156,211.97,211.92,117.76]
[1758751427193,3.35786156,211.96,211.92,117.76]
[1758751427387,7.98,211.99,211.92,117.76]
[1758751427589,3.35790842,211.98,211.92,117.76]
[1758751427789,7.98,212.04,211.93,1.02]
[1758751428188,7.98,212.04,211.98,4.2433]
[1758751428592,7.98,212.04,211.96,1.02]
[1758751428793,7.98,212.04,212.0,5.2629]
[1758751428994,7.98,212.09,212.0,1.02]
[1758751429390,7.98,212.09,211.99,4.2431]
[1758751429596,7.98,212.09,211.97,1.02]
[1758751430298,7.98,212.07,211.97,1.02]
[1758751431302,7.98,212.07,212.0,4.2429]
[1758751432199,12.2218,212.07,211.98,65.9234]
[1758751432597,7.98,212.07,211.98,65.9234]
[1758751432803,4.242,212.06,211.98,65.9234]
[1758751433001,4.242,212.06,211.98,4.2434]
[1758751433905,4.242,212.06,211.99,4.2431]
[1758751434105,7.98,212.07,211.97,1.02]
[1758751435306,7.98,212.07,211.99,1.02]
[1758751435498,7.7,212.11,211.99,1.02]
[1758751435902,7.7,212.11,212.01,4.2427]
[1758751437009,7.7,212.11,211.99,1.02]
[1758751438309,7.7,212.11,212.03,4.2423]
[1758751439106,7.7,212.11,212.01,4.2428]
[1758751439706,7.7,212.08,212.01,4.2428]
[1758751439909,3.35310851,212.07,212.01,4.2428]
[1758751440306,7.34,212.06,212.02,4.2425]
[1758751440511,7.34,212.06,211.99,37.34]
[1758751441404,11.5808,212.11,211.99,37.34]
[1758751441710,3.35181866,212.1,212.02,4.2425]
[1758751441911,3.35181866,212.09,212.02,4.2425]
[1758751442111,3.35181866,212.08,212.02,4.2425]
[1758751442412,3.35181866,212.07,211.99,37.34]
[1758751442612,1.72191595,212.09,212.0,1.72191595]
[1758751442913,3.35128663,212.08,212.02,4.2425]
[1758751443211,7.34,212.11,212.01,1.02]
[1758751443401,5.07268767,212.1,212.01,1.02]
[1758751443606,3.35077172,212.09,212.01,1.02]
[1758751444109,3.35077172,212.09,212.03,4.2422]
[1758751444509,7.34,212.07,211.96,1.02]
[1758751444713,7.34,212.07,211.99,4.2431]
[1758751444714,5.07186462,212.06,211.99,4.2431]
[1758751444910,1.72191595,212.06,211.99,4.2431]
[1758751445116,1.72191595,212.06,211.98,4.2433]
[1758751445412,1.72191595,212.06,211.97,119.26191595]
[1758751445611,1.72191595,212.06,211.97,1.72191595]
[1758751445809,7.34,212.07,211.97,1.72191595]
[1758751446010,3.35003707,212.06,211.97,1.72191595]
[1758751446211,9.06191595,212.07,211.97,1.72191595]
[1758751446412,3.34972864,212.06,212.02,4.2425]
[1758751446716,7.34,212.07,212.01,1.72191595]
[1758751448316,7.34,212.07,212.04,4.2421]
[1758751448916,1.72191595,212.1,212.04,4.2421]
[1758751449108,3.34903101,212.09,212.04,4.2421]
[1758751449416,10.68903101,212.08,212.02,4.2426]
[1758751449609,7.34,212.06,212.02,4.2426]
[1758751450012,7.34,212.06,212.03,4.2423]
[1758751450815,7.34,212.06,212.0,1.02]
[1758751450816,7.34,212.06,212.04,4.2421]
[1758751451029,1.72191595,212.08,212.04,5.2621]
[1758751451218,9.06191595,212.08,212.04,4.2421]
[1758751451521,1.72191595,212.08,212.04,4.2421]
[1758751451718,9.06191595,212.08,212.04,4.2421]
[1758751452024,7.34,212.07,212.04,4.2421]
[1758751452821,1.72191595,212.12,212.04,1.02]
[1758751453020,7.34,212.1,212.04,1.02]
[1758751453214,9.06191595,212.1,212.04,1.02]
[1758751453416,7.34,212.09,212.05,4.2419]
[1758751455222,1.72191595,212.11,212.05,4.2419]
[1758751455422,3.34606502,212.1,212.06,5.2616]
[1758751455626,7.34,212.1,212.06,5.2616]
[1758751456228,7.34,212.1,212.06,4.2416]
[1758751456827,1.72191595,212.11,212.06,4.2416]
[1758751457030,3.34579525,212.1,212.06,4.2416]
[1758751457225,1.72191595,212.11,212.06,4.2416]
[1758751457425,7.34,212.09,212.06,4.2416]
[1758751459029,7.34,212.1,212.06,4.2416]
[1758751459228,7.34,212.08,212.04,4.2421]
[1758751459429,1.72191595,212.09,212.04,4.2421]
[1758751459733,1.72191595,212.07,211.98,1.02]
[1758751460534,1.72191595,212.07,212.02,1.02]
[1758751460734,7.34,212.06,212.02,1.02]
[1758751461830,9.06191595,212.07,211.98,118.52]
[1758751463232,3.33097155,212.06,212.01,4.2427]
[1758751463431,9.06191595,212.07,212.01,5.2627]
[1758751463631,7.34,212.05,212.01,5.2627]
[1758751464234,9.06191595,212.05,212.01,5.2627]
[1758751464438,7.48,212.04,212.01,4.2427]
[1758751464628,1.72191595,212.05,211.99,4.2432]
[1758751464825,1.72191595,212.03,211.95,117.5]
[1758751465239,1.72191595,212.03,211.97,4.2436]
[1758751465533,7.48,212.0,211.94,1.01]
[1758751465729,7.48,212.0,211.92,119.22191595]
[1758751466534,1.72191595,211.99,211.93,4.2444]
[1758751466844,7.48,211.97,211.9,1.01]
[1758751467138,9.20191595,211.97,211.9,1.01]
[1758751467334,1.72191595,211.99,211.95,1.01]
[1758751467640,1.72191595,212.02,211.94,1.01]
[1758751467828,3.33621938,212.01,211.94,1.01]
[1758751468034,3.33621938,212.0,211.94,1.01]
[1758751468233,1.72191595,212.02,211.94,1.01]
[1758751468439,3.3368289,212.01,211.94,1.01]
[1758751468736,3.3368289,212.0,211.94,1.01]
[1758751469035,7.48,211.98,211.94,5.2542]
[1758751469740,7.48,211.98,211.94,4.2442]
[1758751471735,7.48,211.98,211.93,117.5]
[1758751472041,7.48,211.95,211.92,4.2446]
[1758751472536,1.72191595,211.96,211.9,122.775]
[1758751472739,9.20191595,211.96,211.9,121.765]
[1758751473136,1.72191595,211.92,211.86,1.01]
[1758751473331,7.48,211.91,211.87,117.5]
[1758751473736,7.48,211.91,211.87,122.7555]
[1758751474334,7.48,212.02,211.88,67.0499]
[1758751474638,1.72191595,211.98,211.88,68.77181595]
[1758751474837,3.33323905,211.97,211.88,2.73191595]
[1758751475228,3.33323905,211.97,211.9,4.245]
[1758751475634,9.20191595,211.96,211.9,4.245]
[1758751475833,7.48,211.94,211.9,4.245]
[1758751476536,7.48,211.94,211.9,5.255]
[1758751477243,9.20191595,211.94,211.87,117.5]
[1758751478143,7.48,211.91,211.86,5.2558]
[1758751478343,7.48,211.91,211.87,1.01]
[1758751478945,1.72191595,211.9,211.83,4.2463]
[1758751479643,7.48,211.86,211.82,67.24]
[1758751479838,1.72191595,211.87,211.82,68.25]
[1758751480038,9.20191595,211.87,211.82,1.01]
[1758751480840,9.20191595,211.87,211.81,117.52]
[1758751481243,9.20191595,211.87,211.8,4.2469]
[1758751482241,1.72191595,211.85,211.79,117.52]
[1758751483244,1.72191595,211.85,211.79,121.7672]
[1758751483641,9.20191595,211.85,211.79,121.7672]
[1758751484643,1.72191595,211.89,211.79,117.52]
[1758751484846,7.48,211.89,211.79,117.52]
[1758751485046,1.72191595,211.86,211.79,117.52]
[1758751485249,1.72191595,211.86,211.8,4.247]
[1758751486644,1.72191595,211.86,211.79,117.52]
[1758751486842,1.72191595,211.86,211.78,5.2574]
[1758751486843,9.20191595,211.84,211.78,1.01]
[1758751487050,9.20191595,211.84,211.77,117.54]
[1758751487250,13.44831595,211.84,211.77,117.54]
[1758751487551,13.44831595,211.84,211.75,347.4879]
[1758751487949,13.44831595,211.84,211.76,117.56]
[1758751489449,1.72191595,211.81,211.76,117.56]
[1758751489648,7.48,211.8,211.76,117.56]
[1758751489849,7.48,211.8,211.76,118.57]
[1758751491254,1.72191595,211.81,211.77,1.01]
[1758751491647,9.20191595,211.81,211.77,1.01]
[1758751493958,7.81,211.8,211.76,118.58]
[1758751498857,4.247,211.81,211.76,117.56]
[1758751499056,7.81,211.8,211.76,117.56]
[1758751499456,7.81,211.8,211.76,118.58]
[1758751499655,7.81,211.8,211.76,117.56]
[1758751499856,7.81,211.8,211.77,1.02]
[1758751500259,7.81,211.79,211.76,117.56]
[1758751500453,7.81,211.79,211.74,4.2481]
[1758751500660,7.81,211.79,211.75,118.6]
[1758751500861,4.2473,211.79,211.75,118.6]
[1758751501061,7.8,211.78,211.75,117.58]
[1758751501358,7.8,211.78,211.72,5.2686]
[1758751501359,4.2476,211.78,211.72,5.2686]
[1758751501558,7.8,211.77,211.73,106.54]
[1758751501761,7.8,211.77,211.68,1.02]
[1758751501962,4.2482,211.75,211.69,117.56]
[1758751502163,7.8,211.77,211.68,5.2694]
[1758751502361,7.8,211.77,211.69,117.56]
[1758751502864,2.69737103,211.78,211.69,118.58]
[1758751502865,12.0484,211.74,211.69,118.58]
[1758751503063,7.8,211.73,211.69,118.58]
[1758751503371,7.8,211.74,211.69,117.56]
[1758751503561,2.69737103,211.75,211.69,117.56]
[1758751503761,7.8,211.74,211.69,117.56]
[1758751503958,10.49737103,211.75,211.66,4.2497]
[1758751504158,10.49737103,211.75,211.67,117.56]
[1758751504461,4.2486,211.73,211.67,117.56]
[1758751504869,4.2488,211.72,211.67,117.56]
[1758751505161,2.69737103,211.75,211.67,117.56]
[1758751505364,2.69737103,211.75,211.65,1.02]
[1758751505365,11.11884853,211.74,211.65,1.02]
[1758751505566,4.2491,211.7,211.65,1.02]
[1758751505868,4.2491,211.7,211.64,118.6]
[1758751507669,12.0491,211.7,211.64,117.58]
[1758751508771,12.0491,211.7,211.63,343.6]
[1758751508973,12.0491,211.7,211.64,117.58]
[1758751509570,12.0491,211.7,211.62,4.2505]
[1758751509763,12.0491,211.7,211.63,117.58]
[1758751510967,7.8,211.74,211.64,1.02]
[1758751511368,3.31939044,211.73,211.64,1.02]
[1758751511571,7.8,211.74,211.64,1.02]
[1758751511870,3.3192328,211.73,211.64,1.02]
[1758751512077,4.2486,211.73,211.65,4.2499]
[1758751512269,4.2486,211.73,211.64,1.02]
[1758751512468,10.49737103,211.74,211.64,1.02]
[1758751513171,7.8,211.72,211.64,1.02]
[1758751514267,2.69737103,211.71,211.64,1.02]
[1758751515268,4.2492,211.7,211.64,1.02]
[1758751515668,7.8,211.7,211.63,117.58]
[1758751515875,2.69737103,211.65,211.59,1.02]
[1758751516072,7.8,211.64,211.56,49.94]
[1758751517273,7.8,211.64,211.57,1.02]
[1758751518175,7.8,211.64,211.56,49.94]
[1758751518474,7.8,211.64,211.57,1.02]
[1758751519171,4.2508,211.62,211.57,1.02]
[1758751519373,4.2508,211.62,211.56,50.96]
[1758751523883,11.9208,211.62,211.56,50.96]
[1758751524277,4.251,211.61,211.56,50.96]
[1758751524478,4.251,211.61,211.51,1.03]
[1758751524479,7.67,211.61,211.51,1.03]
[1758751524678,7.67,211.58,211.51,1.03]
[1758751524881,3.3321431,211.57,211.51,1.03]
[1758751525076,7.67,211.58,211.51,1.03]
[1758751525281,3.33008966,211.57,211.51,1.03]
[1758751525482,10.36737103,211.58,211.51,1.03]
[1758751525680,3.3308522,211.57,211.51,1.03]
[1758751525882,10.36737103,211.58,211.51,1.03]
[1758751526082,3.3308522,211.57,211.51,1.03]
[1758751526283,11.9222,211.55,211.51,1.03]
[1758751526486,4.2522,211.55,211.51,1.03]
[1758751526680,7.67,211.54,211.51,1.03]
[1758751527187,7.67,211.58,211.5,1.03]
[1758751527884,4.2518,211.57,211.5,5.2828]
[1758751528389,4.252,211.55,211.47,42.86]
[1758751528584,7.67,211.55,211.47,42.86]
[1758751528887,4.2524,211.54,211.46,1.03]
[1758751530195,4.2524,211.54,211.46,5.2837]
[1758751532400,7.67,211.52,211.46,5.2837]
[1758751532695,7.67,211.51,211.39,1.03]
[1758751533192,7.67,211.57,211.43,1.03]
[1758751533393,7.67,211.55,211.43,1.03]
[1758751535296,4.2526,211.53,211.45,4.254]
[1758751536394,11.9226,211.53,211.45,4.254]
[1758751537301,7.67,211.54,211.43,5.2844]
[1758751538197,4.253,211.51,211.43,5.2844]
[1758751538398,7.67,211.5,211.43,5.2844]
[1758751538598,7.67,211.5,211.44,4.2541]
[1758751540796,7.67,211.5,211.42,4.2546]
[1758751541299,7.67,211.51,211.39,15.39846253]
[1758751541498,2.69737103,211.49,211.4,4.255]
[1758751541698,7.67,211.48,211.4,4.255]
[1758751543292,4.2538,211.47,211.4,4.255]
[1758751544499,4.254,211.46,211.4,4.255]
[1758751545299,7.67,211.48,211.42,1.03]
[1758751545903,11.9227,211.52,211.44,4.2541]
[1758751546202,7.67,211.52,211.44,4.2541]
[1758751546400,7.67,211.52,211.44,5.2841]
[1758751547302,7.67,211.52,211.44,1.03]
[1758751548003,11.9228,211.52,211.46,4.2537]
[1758751548205,11.9228,211.52,211.44,1.03]
[1758751548402,7.67,211.52,211.44,1.03]
[1758751549000,11.9228,211.52,211.44,5.2842]
[1758751549704,4.253,211.51,211.44,5.2842]
[1758751550305,7.67,211.49,211.44,5.2842]
[1758751550506,11.9232,211.5,211.44,5.2842]
[1758751551106,11.924,211.46,211.4,4.2549]
[1758751552205,4.2542,211.45,211.38,5.2854]
[1758751552408,7.67,211.45,211.35,96.56]
[1758751552711,7.67,211.46,211.35,97.59]
[1758751552912,7.67,211.44,211.35,97.59]
[1758751553314,7.67,211.44,211.36,4.2558]
[1758751553315,4.2546,211.43,211.36,4.2558]
[1758751554201,7.67,211.44,211.37,4.2555]
[1758751554802,7.87,211.48,211.37,66.1993]
[1758751555104,7.87,211.48,211.39,1.02]
[1758751555303,7.87,211.48,211.41,4.2548]
[1758751555710,7.87,211.48,211.39,1.02]
[1758751556114,4.2524,211.54,211.42,1.02]
[1758751556304,11.19542217,211.53,211.42,1.02]
[1758751556503,7.87,211.51,211.42,1.02]
[1758751557103,3.32698253,211.5,211.42,1.02]
[1758751557308,7.87,211.51,211.42,1.02]
[1758751557510,3.32733945,211.5,211.42,1.02]
[1758751557714,12.1234,211.49,211.42,1.02]
[1758751558317,3.3290792,211.48,211.42,1.02]
[1758751558512,12.1234,211.49,211.42,1.02]
[1758751558717,3.3288367,211.48,211.42,1.02]
[1758751559017,12.1234,211.49,211.42,1.02]
[1758751559312,3.32883472,211.48,211.42,1.02]
[1758751559508,12.1234,211.49,211.42,1.02]
[1758751559705,3.33079218,211.48,211.42,1.02]
[1758751559908,12.1234,211.49,211.42,1.02]
[1758751560116,3.33063244,211.48,211.42,1.02]
[1758751560320,12.1234,211.49,211.42,1.02]
[1758751560514,3.33246753,211.48,211.42,1.02]
[1758751560707,13.85522358,211.49,211.42,1.02]
[1758751560909,3.33330384,211.48,211.39,4.2552]
[1758751561116,7.66,211.45,211.37,1.04]
[1758751561516,7.66,211.45,211.39,4.2551]
[1758751561925,7.66,211.45,211.37,1.04]
[1758751563024,1.73182358,211.4,211.33,1.04]
[1758751563222,7.66,211.39,211.33,1.04]
[1758751563525,11.9154,211.39,211.33,1.04]
[1758751563920,7.66,211.39,211.3,121.877]
[1758751564925,9.39182358,211.39,211.31,1.04]
[1758751566428,4.2555,211.38,211.31,5.2969]
[1758751567326,4.2555,211.38,211.31,1.04]
[1758751567526,1.73182358,211.36,211.3,117.62]
[1758751567723,7.66,211.35,211.3,117.62]
[1758751567922,1.73182358,211.36,211.3,117.62]
[1758751568126,7.66,211.35,211.3,117.62]
[1758751568530,7.66,211.34,211.3,117.62]
[1758751568720,4.2562,211.35,211.3,117.62]
[1758751569223,7.66,211.34,211.3,117.62]
[1758751569423,7.66,211.33,211.26,1.04]
[1758751569724,7.66,211.32,211.26,1.04]
[1758751570516,9.39182358,211.38,211.28,1.04]
[1758751570818,3.33740954,211.37,211.28,1.04]
[1758751571023,9.39182358,211.38,211.28,1.04]
[1758751571224,9.39182358,211.38,211.32,4.2565]
[1758751573521,9.39182358,211.38,211.31,1.04]
[1758751573926,9.39182358,211.38,211.3,117.64]
[1758751574126,7.66,211.35,211.3,117.64]
[1758751574422,1.73182358,211.38,211.31,1.04]
[1758751574826,1.73182358,211.38,211.32,4.2565]
[1758751577227,5.98732358,211.38,211.32,4.2565]
[1758751577431,7.66,211.37,211.3,117.64]
[1758751578239,11.9158,211.37,211.3,117.64]
[1758751579840,13.64762358,211.37,211.31,1.04]
[1758751580033,1.73182358,211.37,211.31,1.04]
[1758751580944,7.66,211.36,211.3,121.897]
[1758751582339,11.9159,211.36,211.3,121.897]
[1758751582733,7.66,211.36,211.3,121.897]
[1758751582935,1.73182358,211.37,211.31,1.04]
[1758751584340,5.98762358,211.37,211.31,1.04]
[1758751584741,1.73182358,211.37,211.31,1.04]
[1758751584941,1.73182358,211.37,211.31,5.2967]
[1758751586040,9.39182358,211.4,211.31,1.05]
[1758751586235,9.45182358,211.44,211.34,1.05]
[1758751586441,3.38074409,211.43,211.36,1.05]
[1758751586638,9.45182358,211.44,211.36,1.05]
[1758751586945,3.38074692,211.43,211.36,1.05]
[1758751587240,7.72,211.44,211.38,4.2553]
[1758751590038,1.73182358,211.45,211.36,1.05]
[1758751590039,1.73182358,211.46,211.4,1.05]
[1758751590443,9.45182358,211.46,211.4,1.05]
[1758751590835,9.45182358,211.46,211.38,4.2554]
[1758751591240,3.38314822,211.45,211.38,4.2554]
[1758751591443,4.2543,211.44,211.37,117.62]
[1758751591740,9.45182358,211.46,211.38,1.05]
[1758751591938,259.92432242,211.53,211.4,1.73182358]
[1758751591939,1.73182358,211.49,211.4,1.73182358]
[1758751592139,1.73182358,211.46,211.35,1.05]
[1758751592353,7.72,211.45,211.35,2.78182358]
[1758751592648,7.72,211.45,211.36,1.05]
[1758751592842,7.72,211.45,211.38,4.2554]
[1758751593045,7.72,211.45,211.36,1.05]
[1758751594044,1.73182358,211.43,211.36,1.05]
[1758751594247,1.73182358,211.4,211.25,344.18]
[1758751594452,7.72,211.36,211.28,4.2573]
[1758751594949,4.2562,211.35,211.28,117.6]
[1758751595248,66.1876,211.41,211.26,1.05]
[1758751595249,9.45182358,211.31,211.26,1.05]
[1758751595951,7.72,211.3,211.26,1.05]
[1758751596140,7.72,211.3,211.25,345.23]
[1758751596346,7.72,211.3,211.25,462.83]
[1758751596555,9.45182358,211.31,211.25,117.6]
[1758751597050,4.2572,211.3,211.25,117.6]
[1758751597349,7.72,211.27,211.25,117.6]
[1758751598249,1.73182358,211.28,211.25,117.6]
[1758751598741,7.72,211.27,211.24,4.14640996]
[1758751598940,1.73182358,211.28,211.24,4.14640996]
[1758751599344,5.98952358,211.28,211.24,4.14640996]
[1758751599540,9.45182358,211.25,211.24,4.14640996]
[1758751599747,4.2584,211.24,211.16,114.62]
[1758751599942,1.73182358,211.22,211.16,114.62]
[1758751600143,9.45182358,211.22,211.16,114.62]
[1758751603151,7.72,211.22,211.16,114.62]
[1758751603354,7.72,211.2,211.16,114.62]
[1758751604257,1.73182358,211.21,211.16,114.62]
[1758751604554,7.72,211.2,211.16,114.62]
[1758751604749,1.73182358,211.21,211.16,114.62]
[1758751604956,7.72,211.2,211.16,114.62]
[1758751605156,7.72,211.2,211.13,345.39]
[1758751605351,7.72,211.2,211.03,2.17703657]
[1758751605352,1.73182358,211.15,211.07,1.05]
[1758751605553,1.73182358,211.15,211.08,117.64]
[1758751607456,1.73182358,211.18,211.09,1.05]
[1758751607850,7.72,211.22,211.09,1.05]
[1758751608259,1.73182358,211.19,211.13,5.3105]
[1758751608460,9.45182358,211.19,211.13,1.05]
[1758751608663,9.45182358,211.19,211.08,117.64]
[1758751608664,1.73182358,211.16,211.09,1.05]
[1758751609859,1.73182358,211.12,211.06,117.64]
[1758751611962,5.99272358,211.12,211.06,117.64]
[1758751612561,7.72,211.17,211.07,1.05]
[1758751612761,9.45182358,211.17,211.07,1.05]
[1758751613260,9.45182358,211.17,211.09,4.2613]
[1758751613464,1.73182358,211.17,211.1,1.05]
[1758751615460,4.2591,211.2,211.1,1.05]
[1758751615659,1.73182358,211.17,211.1,1.05]
[1758751615865,9.45182358,211.21,211.11,1.06]
[1758751616060,9.45182358,211.21,211.13,5.3203]
[1758751616673,13.71082358,211.21,211.13,5.3203]
[1758751616866,9.45182358,211.21,211.13,1.06]
[1758751618164,4.2593,211.2,211.13,1.06]
[1758751618471,9.45182358,211.21,211.13,1.06]
[1758751619074,13.71082358,211.21,211.13,5.3203]
[1758751620376,4.2593,211.2,211.13,5.3203]
[1758751620573,9.45182358,211.21,211.13,1.06]
[1758751620768,9.46182358,211.18,211.12,117.66]
[1758751621176,7.73,211.15,211.12,117.66]
[1758751622075,4.2603,211.15,211.09,1.05]
[1758751622273,9.46182358,211.15,211.06,80.2018]
[1758751622579,7.73,211.15,211.06,75.94]
[1758751623280,4.2609,211.12,211.06,75.94]
[1758751623475,7.73,211.15,211.06,75.94]
[1758751623878,7.73,211.15,211.06,76.99]
[1758751624578,4.2604,211.14,211.07,4.2616]
[1758751626379,10.44503608,211.15,211.06,76.99]
[1758751626782,7.73,211.14,211.06,75.94]
[1758751628186,4.261,211.11,211.06,75.94]
[1758751628484,11.991,211.11,211.06,76.99]
[1758751628683,7.73,211.11,211.02,5.3127]
[1758751630289,4.2613,211.09,211.02,5.3127]
[1758751630789,11.9909,211.11,211.02,1.05]
[1758751630987,7.73,211.11,211.02,1.05]
[1758751632282,11.9911,211.11,211.04,4.2622]
[1758751633490,4.2613,211.1,211.02,5.3127]
[1758751633983,7.73,211.14,211.02,1.05]
[1758751634190,7.73,211.14,211.03,1.05]
[1758751634389,4.2606,211.13,211.03,1.05]
[1758751634581,7.73,211.14,211.03,1.05]
[1758751634982,7.73,211.14,211.07,4.2615]
[1758751635186,7.73,211.14,211.06,1.05]
[1758751635187,2.71503608,211.18,211.06,116.53]
[1758751635390,3.44055871,211.17,211.07,1.05]
[1758751635593,3.44055871,211.16,211.07,1.05]
[1758751635793,10.44503608,211.18,211.07,1.05]
[1758751635995,7.73,211.16,211.07,1.05]
[1758751636293,4.2602,211.15,211.08,4.2614]
[1758751636986,7.73,211.16,211.09,4.2612]
[1758751637187,3.44747033,211.15,211.09,4.2612]
[1758751637496,7.73,211.16,211.09,4.2612]
[1758751637687,3.44787676,211.15,211.09,4.2612]
[1758751637895,11.99,211.16,211.09,4.2612]
[1758751638190,3.44787307,211.15,211.09,4.2612]
[1758751638393,2.71503608,211.18,211.09,4.2612]
[1758751638394,11.17787307,211.14,211.09,5.3112]
[1758751638594,7.73,211.14,211.09,5.3112]
[1758751638789,7.73,211.19,211.1,1.05]
[1758751639094,3.45303686,211.18,211.1,1.05]
[1758751639404,3.45303686,211.17,211.1,1.05]
[1758751639690,3.45303686,211.16,211.1,1.05]
[1758751639888,3.45303686,211.15,211.09,1.05]
[1758751640095,3.45907637,211.14,211.08,69.00453608]
[1758751640294,7.73,211.19,211.09,1.05]
[1758751640495,3.45942578,211.18,211.09,1.05]